Workbook

Sheet Sheet1
A1: Pro-forma for 2025
A3: Account Name | B3: 2025-01-01 | C3: 2025-02-01 | D3: 2025-03-01 | E3: 2025-04-01 | F3: 2025-05-01 | G3: 2025-06-01 | H3: 2025-07-01 | I3: 2025-08-01 | J3: 2025-09-01 | K3: 2025-10-01 | L3: 2025-11-01 | M3: 2025-12-01 | N3: Total
A4: Operating Income & Expense
A5: Income
A6: RENTS
A7: Rent Income | B7: =5803 -> 5803 | C7: =5803 -> 5803 | D7: =5803 -> 5803 | E7: =5803 -> 5803 | F7: =5803 -> 5803 | G7: =5803 -> 5803 | H7: =5803 -> 5803 | I7: =5803 -> 5803 | J7: =5803 -> 5803 | K7: =5803 -> 5803 | L7: =5803 -> 5803 | M7: =5803 -> 5803 | N7: =SUM(B7:M7) -> 69636
A8: Pet Rent | B8: 40 | C8: 40 | D8: 40 | E8: 40 | F8: 40 | G8: 40 | H8: 40 | I8: 40 | J8: 40 | K8: 40 | L8: 40 | M8: 40 | N8: =SUM(B8:M8) -> 480
A9: Utility Reimbursement Fee | B9: 495 | C9: 495 | D9: 495 | E9: 495 | F9: 495 | G9: 495 | H9: 495 | I9: 495 | J9: 495 | K9: 495 | L9: 495 | M9: 495 | N9: 5940
A10: Total RENTS | B10: =SUM(B7:B9) -> 6338 | C10: =SUM(C7:C9) -> 6338 | D10: 6338 | E10: 6338 | F10: 6338 | G10: 6338 | H10: 6338 | I10: 6338 | J10: 6338 | K10: 6338 | L10: 6338 | M10: 6338 | N10: 76056
A11: Total Operating Income | B11: =B10 -> 6338 | C11: =C10 -> 6338 | D11: 6338 | E11: 6338 | F11: 6338 | G11: 6338 | H11: 6338 | I11: 6338 | J11: 6338 | K11: 6338 | L11: 6338 | M11: 6338 | N11: 76056
A12: Expense
A13: Rental License Fee | B13: 0 | C13: 0 | D13: 0 | E13: 60 | F13: 0 | G13: 0 | H13: 0 | I13: 0 | J13: 0 | K13: 0 | L13: 0 | M13: 0 | N13: =SUM(B13:M13) -> 60
A14: Dues & Subscriptions | B14: 30 | C14: 0 | D14: 0 | E14: 0 | F14: 0 | G14: 0 | H14: 0 | I14: 0 | J14: 0 | K14: 0 | L14: 0 | M14: 0 | N14: =SUM(B14:M14) -> 30
A15: Monthly Management Fees | B15: =(B6+B7)*0.08 -> 464.24 | C15: =(C6+C7)*0.08 -> 464.24 | D15: 464.24 | E15: 464.24 | F15: 464.24 | G15: 464.24 | H15: 464.24 | I15: 464.24 | J15: 464.24 | K15: 464.24 | L15: 464.24 | M15: 464.24 | N15: =SUM(B15:M15) -> 5570.88
A16: Insurance | B16: =546000*0.0075/12 -> 341.25 | C16: =546000*0.0075/12 -> 341.25 | D16: 341.25 | E16: 341.25 | F16: 341.25 | G16: 341.25 | H16: 341.25 | I16: 341.25 | J16: 341.25 | K16: 341.25 | L16: 341.25 | M16: 341.25 | N16: 4095
A17: Real Estate Taxes | B17: =11610/12 -> 967.5 | C17: =11610/12 -> 967.5 | D17: 967.5 | E17: 967.5 | F17: 967.5 | G17: 967.5 | H17: 967.5 | I17: 967.5 | J17: 967.5 | K17: 967.5 | L17: 967.5 | M17: 967.5 | N17: 11610
A18: REPAIRS & MAINTENANCE
A19: General Labor & Repairs | B19: 692.4 | C19: 0 | D19: 0 | E19: 0 | F19: 0 | G19: 0 | H19: 0 | I19: 0 | J19: 0 | K19: 0 | L19: 0 | M19: 0 | N19: 692.4
A20: Cleaning - Janitorial | B20: 100 | C20: 100 | D20: 100 | E20: 100 | F20: 100 | G20: 100 | H20: 100 | I20: 100 | J20: 100 | K20: 100 | L20: 100 | M20: 100 | N20: 1200
A21: Snow Removal | B21: 300 | C21: 300 | D21: 300 | E21: 0 | F21: 0 | G21: 0 | H21: 0 | I21: 0 | J21: 0 | K21: 0 | L21: 0 | M21: 300 | N21: 1200
A22: Total REPAIRS & MAINTENANCE | B22: =SUM(B19:B21) -> 1092.4 | C22: =SUM(C19:C21) -> 400 | D22: 400 | E22: 100 | F22: 100 | G22: 100 | H22: 100 | I22: 100 | J22: 100 | K22: 100 | L22: 100 | M22: 400 | N22: 3092.4
A23: UTILITIES
A24: Gas - Building | B24: 806.54 | C24: 1204.62 | D24: 961.42 | E24: 250 | F24: 150 | G24: 50 | H24: 50 | I24: 50 | J24: 50 | K24: 50 | L24: 200 | M24: 350 | N24: =SUM(B24:M24) -> 4172.58
A25: Water & Sewer | B25: 750 | C25: 0 | E25: 750 | F25: 0 | G25: 0 | H25: 750 | I25: 0 | J25: 0 | K25: 750 | L25: 0 | M25: 0 | N25: =SUM(B25:M25) -> 3000
A26: Electric - Building | B26: 50.05 | C26: 50.05 | D26: 50.05 | E26: 50.05 | F26: 50.05 | G26: 50.05 | H26: 50.05 | I26: 50.05 | J26: 50.05 | K26: 50.05 | L26: 50.05 | M26: 50.05 | N26: 600.6
A27: Garbage and Recycling | B27: 132.8 | C27: 132.8 | D27: 132.8 | E27: 132.8 | F27: 132.8 | G27: 132.8 | H27: 132.8 | I27: 132.8 | J27: 132.8 | K27: 132.8 | L27: 132.8 | M27: 132.8 | N27: 1593.6
A28: Total UTILITIES | B28: =SUM(B24:B27) -> 1739.39 | C28: =SUM(C24:C27) -> 1387.47 | D28: 1144.27 | E28: 1182.85 | F28: 332.85 | G28: 232.85 | H28: 982.85 | I28: 232.85 | J28: 232.85 | K28: 982.85 | L28: 382.85 | M28: 532.85 | N28: 9366.78
A29: Total Operating Expense | B29: =B28+B22+B17+B14+B13 -> 3829.29 | C29: =C28+C22+C17+C14+C13 -> 2754.97 | D29: 2511.77 | E29: 2310.35 | F29: 1400.35 | G29: 1300.35 | H29: 2050.35 | I29: 1300.35 | J29: 1300.35 | K29: 2050.35 | L29: 1450.35 | M29: 1900.35 | N29: 24159.18
A31: NOI - Net Operating Income | B31: =B11-B29 -> 2508.71 | C31: =C11-C29 -> 3583.03 | D31: 3826.23 | E31: 4027.65 | F31: 4937.65 | G31: 5037.65 | H31: 4287.65 | I31: 5037.65 | J31: 5037.65 | K31: 4287.65 | L31: 4887.65 | M31: 4437.65 | N31: 51896.82
